bitfinex/quotes_ETHUSD_20240824
["timestamp","ask_amount","ask_price","bid_price","bid_amount"]
[1724462441854,11.07941,2755.3,2754.8,3.63]
[1724462442064,0.07179732,2755.1,2754.8,3.63]
[1724462442273,11.07941,2755.3,2754.8,3.63]
[1724462442501,0.0717571,2755.0,2754.8,3.63]
[1724462442792,0.07171689,2754.9,2754.8,4.586707]
[1724462442996,7.45,2755.3,2754.8,4.586707]
[1724462443151,0.07171689,2754.9,2754.8,7.26002]
[1724462443356,7.45,2755.3,2754.9,3.62977]
[1724462443552,7.45,2755.3,2755.0,3.62975]
[1724462443754,0.07183753,2755.2,2755.0,3.62975]
[1724462443982,6.11878,2755.5,2755.0,3.62975]
[1724462444253,0.06944463,2755.4,2755.0,3.62975]
[1724462445761,0.06944463,2755.4,2755.1,2.3859]
[1724462446297,0.06944463,2755.4,2755.0,3.62968]
[1724462446874,0.06944463,2755.4,2754.9,2.3859]
[1724462447072,3.69868463,2755.4,2754.9,2.3859]
[1724462447321,3.69868463,2755.4,2754.8,3.62992]
[1724462447322,5.88593,2755.3,2754.8,3.62992]
[1724462447520,5.88593,2755.3,2754.2,6.01661]
[1724462447521,3.62998,2754.9,2754.2,6.01661]
[1724462447851,0.06926591,2754.8,2754.2,6.01661]
[1724462448611,0.06926591,2754.8,2754.2,3.63071]
[1724462449627,0.06926591,2754.8,2754.3,3.63055]
[1724462449802,0.06926591,2754.8,2754.4,3.63054]
[1724462450839,7.02260531,2755.1,2754.4,3.63054]
[1724462451043,0.06908312,2754.7,2754.4,3.63054]
[1724462451257,7.02260531,2755.1,2754.4,3.63054]
[1724462451460,0.06904289,2754.6,2754.4,3.63054]
[1724462451608,5.88619,2755.1,2754.4,3.63054]
[1724462451609,7.02260531,2755.1,2754.4,3.63054]
[1724462451943,0.06900266,2754.5,2754.4,3.63054]
[1724462452132,1.13641531,2755.0,2754.4,3.63054]
[1724462452333,0.06900266,2754.5,2754.2,7.26149]
[1724462452506,4.76632531,2754.9,2754.2,7.26149]
[1724462452706,0.06896243,2754.4,2754.2,7.26149]
[1724462452934,8.39633531,2754.9,2754.2,3.63071]
[1724462453143,0.06892219,2754.3,2754.2,4.595477]
[1724462453355,1.13641531,2754.8,2754.3,3.63066]
[1724462454400,0.06908312,2754.7,2754.3,3.63066]
[1724462454608,1.13641531,2754.8,2754.3,3.63066]
[1724462454816,0.06904289,2754.6,2754.3,3.63066]
[1724462455018,1.13641531,2754.8,2754.3,4.595402]
[1724462455317,0.06900266,2754.5,2754.3,8.225992]
[1724462455519,1.13641531,2754.8,2754.4,3.63055]
[1724462456626,1.13641531,2754.7,2754.3,4.595332]
[1724462456814,1.13641531,2754.7,2754.1,9.64768]
[1724462457016,7.02328531,2754.6,2753.9,3.63111]
[1724462457218,3.6307,2754.3,2753.7,3.63134]
[1724462457458,7.02373531,2754.2,2753.5,7.26332]
[1724462457671,7.02373531,2754.2,2753.6,4.596492]
[1724462458018,0.06867156,2754.1,2753.7,3.63147]
[1724462458634,0.06867156,2754.1,2753.7,7.26294]
[1724462459165,0.06867156,2754.1,2753.7,3.63147]
[1724462460614,0.06867156,2754.1,2753.9,3.63111]
[1724462460815,1.13641531,2754.3,2753.8,3.63132]
[1724462461251,0.06850944,2754.2,2753.8,3.63132]
[1724462461557,1.13641531,2754.2,2753.8,3.63132]
[1724462461766,0.0684692,2754.1,2753.8,3.63132]
[1724462462135,1.13641531,2754.3,2753.8,3.63132]
[1724462462568,0.06850944,2754.2,2753.8,3.63132]
[1724462462906,4.76724531,2754.2,2753.6,4.596492]
[1724462463081,0.0684692,2754.1,2753.7,3.63147]
[1724462463453,1.13641531,2754.3,2753.7,3.63147]
[1724462463667,0.06842895,2754.0,2753.7,4.4542662]
[1724462463905,0.06842895,2754.0,2753.9,3.63121]
[1724462464412,1.13641531,2754.3,2753.9,3.63121]
[1724462464623,0.06842895,2754.0,2753.9,3.63121]
[1724462464915,1.13641531,2754.3,2753.9,3.63121]
[1724462465210,0.06850944,2754.2,2753.9,3.63121]
[1724462465411,1.13641531,2754.3,2753.9,3.63121]
[1724462465570,0.0684692,2754.1,2753.5,3.63165]
[1724462465912,0.0684692,2754.1,2753.2,3.0]
[1724462465913,0.0684692,2754.1,2753.7,7.26278]
[1724462466062,0.0684692,2754.1,2753.7,3.63139]
[1724462466918,0.0684692,2754.1,2753.4,3.63185]
[1724462466919,3.6994192,2754.1,2753.4,3.63185]
[1724462467081,3.45871531,2754.0,2753.4,3.63185]
[1724462467280,3.63128,2753.9,2753.4,3.63185]
[1724462467481,0.06808049,2753.9,2753.4,3.63185]
[1724462467698,0.06808049,2753.9,2753.6,3.63159]
[1724462467913,1.13641531,2754.2,2753.7,0.596959]
[1724462468117,0.06792521,2753.8,2753.7,4.228429]
[1724462468273,1.13641531,2754.2,2753.7,4.228429]
[1724462468995,0.06804595,2754.1,2753.7,4.228429]
[1724462469521,0.06804595,2754.1,2753.8,3.63133]
[1724462469670,0.06804595,2754.1,2753.9,0.4228289]
[1724462469866,2.3223,2754.3,2753.9,0.4228289]
[1724462470403,0.06799876,2754.2,2753.9,0.4228289]
[1724462470712,2.3223,2754.3,2753.9,0.4228289]
[1724462471074,0.06799876,2754.2,2753.9,0.4228289]
[1724462471270,2.3223,2754.3,2753.9,0.4228289]
[1724462471470,0.06795852,2754.1,2753.9,0.4228289]
[1724462471784,0.06791827,2754.0,2753.9,0.4228289]
[1724462471987,2.3223,2754.3,2753.9,0.4228289]
[1724462472174,0.06799876,2754.2,2753.9,0.4228289]
[1724462472369,2.3223,2754.3,2753.9,0.4228289]
[1724462472684,0.06799876,2754.2,2753.9,0.4228289]
[1724462472900,2.3223,2754.3,2753.9,0.4228289]
[1724462473073,0.06795852,2754.1,2753.9,0.4228289]
[1724462473268,2.3223,2754.3,2753.9,0.4228289]
[1724462473956,0.06799876,2754.2,2753.9,2.7608289]
[1724462474242,11.08056,2754.4,2754.0,0.63920689]
[1724462474441,0.06797234,2754.1,2753.9,0.4228289]
[1724462474736,11.08056,2754.4,2753.9,0.4228289]
[1724462475194,0.06805742,2754.3,2753.9,0.4228289]
[1724462476441,0.06805742,2754.3,2754.0,3.63107]
[1724462476732,0.06805742,2754.3,2753.9,4.0540289]
[1724462479695,0.06805742,2754.3,2754.0,4.39956589]
[1724462480002,1.13641531,2754.7,2754.2,3.63081]
[1724462480311,0.06656313,2754.6,2754.4,3.63053]
[1724462480696,7.45,2754.8,2754.3,3.63067]
[1724462480934,11.08004,2754.8,2754.3,3.63067]
[1724462481399,7.23672531,2755.0,2754.5,3.6304]
[1724462482303,7.23672531,2755.0,2754.3,7.864237]
[1724462482621,7.23672531,2755.0,2754.4,3.63048]
[1724462483298,3.62991,2754.9,2754.3,3.63057]
[1724462483601,0.06456653,2754.8,2754.3,3.63057]
[1724462484046,3.63019,2754.7,2754.1,6.03017]
[1724462484212,3.63019,2754.7,2753.5,8.20036561]
[1724462484213,3.63076,2754.3,2753.5,11.07166]
[1724462484544,6.19118333,2754.2,2753.5,11.07164]
[1724462484883,3.63105,2754.1,2753.5,3.63164]
[1724462485051,3.63109,2754.0,2753.3,3.63191]
[1724462485340,4.79133802,2754.1,2753.4,3.63186]
[1724462485540,4.79133802,2754.1,2753.5,3.6317]
[1724462485541,0.06399257,2753.9,2753.5,3.6317]
[1724462485845,0.06412598,2753.8,2753.5,3.6317]
[1724462486440,0.0639989,2753.7,2753.5,3.6317]
[1724462486944,3.6311,2754.0,2753.3,3.63191]
[1724462487243,4.46703069,2753.9,2753.3,3.63191]
[1724462487469,4.53110123,2753.9,2753.3,3.63191]
[1724462488473,0.89987123,2753.9,2753.3,3.63191]
[1724462488907,0.06407054,2753.9,2753.3,3.63191]
[1724462489336,8.35797686,2754.1,2753.3,3.63191]
[1724462489662,2.4959,2753.8,2753.3,3.63191]
[1724462490012,0.06399003,2753.7,2753.3,3.63191]
[1724462490258,2.4959,2753.8,2753.3,3.63191]
[1724462490568,0.06394977,2753.6,2752.9,6.6325]
[1724462490862,0.06387724,2753.5,2753.0,3.63239]
[1724462491210,3.63162,2753.6,2752.9,6.6325]
[1724462491406,3.39972494,2753.5,2753.0,3.63239]
[1724462491610,3.39972494,2753.5,2753.1,3.63224]
[1724462491854,3.39972494,2753.5,2752.9,3.6325]
[1724462493428,3.39972494,2753.5,2753.0,3.63237]
[1724462494057,3.39972494,2753.5,2752.9,7.26493]
[1724462494257,3.39972494,2753.5,2753.0,3.63237]
[1724462495535,2.55976341,2753.5,2753.2,3.6321]
[1724462496527,2.55976341,2753.5,2753.0,3.63231]
[1724462496726,2.55976341,2753.5,2753.1,3.63216]
[1724462497755,2.55976341,2753.5,2753.2,3.63212]
[1724462498658,0.06386341,2753.5,2753.4,3.63187]
[1724462501068,7.65784945,2753.9,2753.2,7.26408]
[1724462501259,6.87881726,2753.8,2753.2,3.63202]
[1724462501769,2.3716,2753.6,2753.0,3.63234]
[1724462501971,6.00329,2753.6,2753.0,3.63234]
[1724462502123,10.71698544,2753.6,2753.0,3.63234]
[1724462502326,7.08528544,2753.6,2753.0,3.63234]
[1724462502625,7.08528544,2753.6,2753.0,3.63231]
[1724462503053,0.06337065,2753.5,2753.0,3.63231]
[1724462503363,0.06337065,2753.5,2753.0,7.26462]
[1724462503582,0.06337065,2753.5,2753.0,3.63231]
[1724462504369,0.06337065,2753.5,2753.0,7.26462]
[1724462504521,0.06337065,2753.5,2753.1,3.63225]
[1724462504727,0.06337065,2753.5,2753.2,3.63212]
[1724462504955,0.06337065,2753.5,2753.3,3.63191]
[1724462505267,2.3716,2753.8,2753.4,3.63186]
[1724462505467,3.50801531,2753.8,2753.2,7.26416]
[1724462505763,3.50801531,2753.8,2752.8,3.63262]
[1724462505764,4.76805531,2753.6,2752.9,3.63243]
[1724462505941,0.38799514,2753.5,2752.9,3.63243]
[1724462506143,4.76805531,2753.6,2752.9,3.63243]
[1724462506365,3.63164,2753.6,2752.9,3.63243]
[1724462506535,3.63176,2753.5,2752.9,3.63243]
[1724462506880,2.3716,2753.4,2752.9,3.63243]
[1724462507228,3.69527246,2753.3,2752.6,6.63288]
[1724462507476,3.69527246,2753.3,2752.6,3.63288]
[1724462507477,3.63222,2753.2,2752.6,3.63288]
[1724462507930,0.06312661,2753.1,2752.7,3.63278]
[1724462508103,0.06312661,2753.1,2752.5,3.63304]
[1724462508307,2.3716,2753.0,2752.5,3.63304]
[1724462508820,0.06304606,2752.9,2752.5,3.63304]
[1724462509375,0.06304606,2752.9,2752.4,7.44]
[1724462509376,3.69559606,2752.9,2752.4,7.44]
[1724462509582,4.66555667,2752.9,2752.4,7.44]
[1724462510077,2.3716,2752.7,2752.4,7.44]
[1724462510424,6.0044,2752.7,2752.4,7.44]
[1724462510629,3.69592521,2752.6,2752.4,7.44]
[1724462511320,3.63306,2752.5,2752.4,7.44]
[1724462511498,3.63306,2752.5,2752.0,3.63367]
[1724462511837,0.06258062,2752.5,2752.0,3.63362]
[1724462512018,6.0045,2752.7,2752.0,3.63362]
[1724462512216,1.02591474,2752.6,2752.0,7.26724]
[1724462512911,1.02591474,2752.6,2752.0,3.63362]
[1724462513117,1.02591474,2752.6,2752.0,7.26726]
[1724462513321,0.06219174,2752.6,2752.0,7.26723]
[1724462513521,0.06219174,2752.6,2752.0,3.63361]
[1724462516093,3.69513174,2752.6,2752.0,3.63361]
[1724462516541,3.63308,2752.5,2751.8,7.40555662]
[1724462516692,3.63308,2752.5,2751.8,3.77161662]
[1724462516895,0.05977257,2752.4,2751.9,3.63384]
[1724462517890,0.05977257,2752.4,2752.0,3.63371]
[1724462518096,0.05977257,2752.4,2752.1,2.325]
[1724462518295,2.3716,2752.7,2752.2,3.63344]
[1724462518594,6.0044,2752.7,2752.2,3.63344]
[1724462518811,3.69280086,2752.6,2752.0,7.26729]
[1724462519207,0.05982086,2752.6,2752.2,3.6334]
[1724462519408,0.05982086,2752.6,2752.0,7.26725]
[1724462520309,0.05982086,2752.6,2752.1,3.63357]
[1724462520515,3.69275086,2752.6,2752.0,3.63362]
[1724462520824,3.69275086,2752.6,2752.0,7.26725]
[1724462521141,3.69275086,2752.6,2752.0,3.63362]
[1724462521142,2.4089,2752.4,2752.0,3.63362]
[1724462521443,0.05975073,2752.3,2751.7,3.63404]
[1724462521613,3.69316073,2752.3,2751.7,3.63403]
[1724462521999,0.05975073,2752.3,2751.8,3.63397]
[1724462522409,0.05975073,2752.3,2751.8,0.9593]
[1724462522616,0.05975073,2752.3,2752.1,3.63346]
[1724462522814,3.63279,2752.7,2752.1,3.63346]
[1724462523206,0.05975627,2752.6,2752.1,3.63346]
[1724462523636,3.69267627,2752.6,2751.9,7.26752]
[1724462523848,3.63306,2752.5,2751.9,7.26748]
[1724462524015,0.05956489,2752.4,2752.0,3.63369]
[1724462524352,3.63289,2752.7,2752.1,3.63358]
[1724462524855,0.05964548,2752.6,2752.1,3.63358]
[1724462525912,0.05964548,2752.6,2752.1,7.26707]
[1724462526119,0.05964548,2752.6,2752.2,2.325]
[1724462526549,6.04164,2752.8,2752.1,3.63347]
[1724462526751,6.0418,2752.7,2752.1,3.63347]
[1724462527136,2.4089,2753.0,2752.3,3.63328]
[1724462527367,2.4089,2753.0,2752.3,3.63323]
[1724462527677,2.4089,2753.0,2752.5,3.63297]
[1724462527892,2.4089,2753.0,2752.6,3.63292]
[1724462528050,6.04108,2753.2,2752.6,3.63292]
[1724462528234,9.67332,2753.2,2752.6,3.63292]
[1724462528435,2.4089,2753.2,2752.8,3.63264]
[1724462528933,7.45,2753.3,2752.5,2.325]
[1724462529384,11.08205,2753.3,2752.7,3.63278]
[1724462529549,11.08205,2753.3,2752.6,3.63287]
[1724462529876,11.08205,2753.3,2752.5,2.325]
[1724462529877,0.0582606,2753.2,2752.5,2.325]
[1724462530081,0.0582606,2753.2,2752.8,3.63259]
[1724462530685,0.0583311,2753.1,2752.8,3.63259]
[1724462531056,7.45,2753.3,2752.8,3.63259]
[1724462531253,0.05837137,2753.2,2752.8,3.63259]
[1724462531457,7.45,2753.3,2752.8,3.63259]
[1724462531680,0.05837137,2753.2,2752.8,3.63259]
[1724462531979,7.45,2753.3,2752.8,3.63259]
[1724462532184,0.05635834,2753.1,2752.8,3.63259]
[1724462532385,0.05639861,2753.2,2752.9,3.6325]
[1724462532680,7.45,2753.3,2752.9,3.6325]
[1724462532988,0.05631991,2753.1,2752.9,3.6325]
[1724462533200,7.45,2753.3,2752.9,3.6325]
[1724462533346,0.05627964,2753.0,2752.9,3.6325]
[1724462533856,7.45,2753.3,2752.9,3.6325]
[1724462534050,0.05636018,2753.2,2752.9,3.6325]
[1724462534253,7.45,2753.3,2752.9,3.6325]
[1724462534455,0.05636018,2753.2,2752.9,3.6325]
[1724462534667,7.45,2753.3,2752.9,3.6325]
[1724462534836,2.46526018,2753.2,2752.7,3.63269]
[1724462535658,0.05636018,2753.2,2752.7,3.63269]
[1724462536068,0.05636018,2753.2,2753.0,7.2646]
[1724462536381,14.62688531,2753.7,2753.1,3.63226]
[1724462536587,1.82582853,2753.6,2753.1,3.63226]
[1724462537148,0.05668848,2753.5,2753.1,3.63226]
[1724462538158,0.05668848,2753.5,2752.9,5.95742]
[1724462538485,0.05668848,2753.5,2752.9,2.325]
[1724462539363,0.05668848,2753.5,2753.0,3.63236]
[1724462541158,3.68843848,2753.5,2753.0,3.63236]
[1724462541368,5.70255971,2753.5,2752.8,3.63254]
[1724462541550,5.70255971,2753.5,2752.9,3.63245]
[1724462542279,5.70255971,2753.5,2753.0,3.63238]
[1724462542498,2.07080971,2753.5,2753.0,3.63238]
[1724462542650,0.05668848,2753.5,2753.1,2.3886]
[1724462543011,14.62680531,2753.7,2753.1,2.3886]
[1724462543304,14.62680531,2753.7,2753.0,3.63238]
[1724462543305,3.63171,2753.6,2753.0,3.63238]
[1724462543603,4.82491861,2753.6,2753.0,3.63231]
[1724462543845,1.19320861,2753.6,2753.0,3.63231]
[1724462543956,0.0567933,2753.6,2753.1,3.63217]
[1724462545979,0.0567933,2753.6,2753.2,3.63213]
[1724462546181,0.0567933,2753.6,2753.2,3.63206]
[1724462546381,0.0567933,2753.6,2753.3,3.63198]
[1724462546709,0.0567933,2753.6,2753.4,3.63186]
[1724462547410,0.0567933,2753.6,2753.2,7.26408]
[1724462547816,0.0567933,2753.6,2753.3,3.63198]
[1724462549513,0.0567933,2753.6,2753.2,3.63202]
[1724462549715,0.0567933,2753.6,2753.2,7.26407]
[1724462550104,3.63134,2753.8,2753.2,7.26407]
[1724462550302,0.05677229,2753.5,2753.3,3.63199]
[1724462550508,7.16024531,2753.9,2753.3,3.63199]
[1724462550665,0.05673203,2753.4,2753.3,3.63199]
[1724462550869,9.13496793,2753.9,2753.3,3.63199]
[1724462551070,0.05689307,2753.8,2753.3,3.63199]
[1724462551501,0.05689307,2753.8,2753.2,3.63202]
[1724462551704,0.05689307,2753.8,2753.3,3.632]
[1724462552730,0.5692743,2753.7,2753.3,3.632]
[1724462553102,0.05681255,2753.6,2753.3,3.632]
[1724462553295,3.63134,2753.8,2753.2,3.63202]
[1724462553531,0.05685281,2753.7,2753.3,3.632]
[1724462553798,3.63137,2753.8,2753.2,7.26407]
[1724462554029,0.05681255,2753.6,2753.2,3.63202]
[1724462554231,0.05685281,2753.7,2753.2,7.26407]
[1724462554449,0.05677229,2753.5,2753.2,3.63202]
[1724462554745,0.05673203,2753.4,2753.3,3.63192]
[1724462555242,7.99861262,2753.9,2753.3,3.63192]
[1724462555443,0.05673203,2753.4,2753.3,3.63192]
[1724462555649,7.99861262,2753.9,2753.3,3.63192]
[1724462555813,0.05673203,2753.4,2753.3,3.63192]
[1724462556012,7.99861262,2753.9,2753.3,3.63192]
[1724462556213,0.05673203,2753.4,2753.3,3.63192]
[1724462556455,3.63135,2753.8,2753.3,3.63192]
[1724462556664,0.05673203,2753.4,2753.3,3.63192]
[1724462556816,3.63135,2753.8,2753.3,3.63192]
[1724462557016,0.05673203,2753.4,2753.3,3.63192]
[1724462557520,3.63135,2753.8,2753.3,3.63192]
[1724462557736,0.05673203,2753.4,2753.3,3.63192]
[1724462558059,3.63135,2753.8,2753.3,3.63192]
[1724462558216,0.05673203,2753.4,2753.3,3.63192]
[1724462558418,7.99855262,2753.9,2753.4,3.63186]
[1724462558661,5.60595262,2753.9,2753.4,3.63186]
[1724462560369,3.63135,2753.8,2753.3,2.3803]
[1724462560530,3.63135,2753.8,2753.3,6.01223]
[1724462560864,1.97472262,2753.9,2753.3,6.01223]
[1724462561220,0.05719733,2753.8,2753.3,6.01223]
[1724462561844,0.05719733,2753.8,2753.4,3.63183]
[1724462562045,0.05719733,2753.8,2753.4,3.63179]
[1724462562260,0.05719733,2753.8,2753.4,3.63177]
[1724462562567,12.21744531,2754.1,2753.4,3.63176]
[1724462562568,0.05720581,2753.7,2753.4,3.63176]
[1724462562714,7.45,2754.1,2753.6,7.26312]
[1724462563063,7.45,2754.1,2753.6,3.63152]
[1724462563216,11.08096,2754.1,2753.6,3.63152]
[1724462564238,7.45,2754.1,2753.7,3.63145]
[1724462564474,7.45,2754.1,2753.6,3.63152]
[1724462564475,8.39796531,2754.3,2753.6,3.63151]
[1724462564656,7.29482685,2754.3,2753.6,3.63151]
[1724462564846,3.68827178,2754.2,2753.6,7.26302]
[1724462565184,3.68827178,2754.2,2753.6,3.63151]
[1724462566249,3.68827178,2754.2,2753.7,3.63142]
[1724462567884,0.05744178,2754.2,2753.7,3.63142]
[1724462568966,0.05744178,2754.2,2753.7,0.974043]
[1724462569182,3.54551531,2754.4,2753.9,3.63119]
[1724462569388,0.05757156,2754.1,2753.9,3.63119]
[1724462569708,3.54551531,2754.4,2753.9,3.63119]
[1724462570167,3.54551531,2754.4,2753.9,6.10863]
[1724462570511,1.13641531,2754.4,2753.9,6.10863]
[1724462570864,4.76707531,2754.4,2753.7,9.74029]
[1724462571193,1.13641531,2754.3,2753.7,9.74029]
[1724462571519,1.13641531,2754.3,2753.7,6.10889]
[1724462572067,0.05761181,2754.2,2753.7,6.10889]
[1724462572276,0.05761181,2754.2,2753.8,3.63126]
[1724462572475,1.13641531,2754.3,2753.8,3.63126]
[1724462572889,1.13641531,2754.3,2753.7,6.10889]
[1724462572890,0.05761181,2754.2,2753.7,6.10889]
[1724462573677,0.05761181,2754.2,2753.8,3.63127]
[1724462574079,0.05757156,2754.1,2753.8,3.63127]
[1724462574316,0.05757156,2754.1,2753.9,3.6312]
[1724462574466,1.13641531,2754.3,2753.9,7.26233]
[1724462574861,0.05761181,2754.2,2753.9,7.26233]
[1724462575061,0.05761181,2754.2,2753.9,3.63113]
[1724462575311,1.13641531,2754.3,2753.9,3.63113]
[1724462575889,0.05761181,2754.2,2753.9,3.63113]
[1724462576299,1.13641531,2754.3,2753.9,3.63113]
[1724462576596,0.05757156,2754.1,2753.9,3.63113]
[1724462581287,0.05757156,2754.1,2753.7,6.10889]
[1724462581483,0.05757156,2754.1,2753.4,3.0]
[1724462581484,3.63124,2753.9,2753.4,3.63177]
[1724462581711,0.603744,2753.8,2753.2,6.02643]
[1724462581911,1.13641531,2753.9,2753.4,3.63177]
[1724462582125,1.13641531,2753.8,2753.4,3.63177]
[1724462582299,1.13641531,2753.9,2753.4,3.63177]
[1724462583433,1.13641531,2753.9,2753.4,7.26355]
[1724462583930,1.13641531,2753.9,2753.4,3.63177]
[1724462584640,1.13641531,2753.9,2753.4,3.63179]
[1724462584839,1.13641531,2753.9,2753.2,2.3944]
[1724462584840,1.13641531,2754.0,2753.6,7.26305]
[1724462585226,1.13641531,2754.0,2753.6,3.63152]
[1724462585936,2.4062,2753.8,2753.4,3.63175]
[1724462586342,3.54261531,2753.8,2753.2,6.02644]
[1724462586545,1.13641531,2753.6,2753.0,6.02672]
[1724462586696,1.13641531,2753.6,2753.1,3.63226]
[1724462586891,5.48536884,2753.7,2753.1,3.63226]
[1724462587907,5.48536884,2753.7,2753.2,3.6321]
[1724462588342,1.13641531,2753.7,2753.5,6.02605]
[1724462588644,1.13641531,2753.9,2753.6,3.63157]
[1724462588998,2.4062,2753.8,2753.2,3.63204]
[1724462589196,7.17396531,2753.8,2753.3,3.632]
[1724462590712,3.54261531,2753.8,2753.4,3.63186]
[1724462591050,1.13641531,2753.7,2753.4,3.63186]
[1724462591404,1.13641531,2753.7,2753.2,3.63203]
[1724462591943,1.13641531,2753.7,2753.2,7.26408]
[1724462592241,1.13641531,2753.7,2753.2,8.229928]
[1724462593557,1.13641531,2753.7,2753.3,3.63198]
[1724462595415,1.13641531,2753.7,2753.3,2.81067345]
[1724462596004,1.13641531,2753.7,2753.2,3.63203]
[1724462596845,1.13641531,2753.7,2753.2,7.26408]
[1724462597020,1.13641531,2753.7,2753.2,3.63203]
[1724462598049,1.13641531,2753.7,2753.3,3.63191]
[1724462598243,1.13641531,2753.8,2753.5,3.63173]
[1724462600165,1.13641531,2753.8,2753.4,2.4052]
[1724462600371,1.13641531,2753.8,2753.4,6.03706]
[1724462601368,1.13641531,2753.7,2753.4,6.03706]
[1724462603304,1.13641531,2753.7,2753.4,3.63186]
[1724462604496,1.13641531,2753.7,2753.2,9.66934]
[1724462604879,1.13641531,2753.7,2753.3,3.63199]
[1724462607619,1.13641531,2753.8,2753.7,3.63147]
[1724462608315,1.13641531,2753.9,2753.7,3.63147]
[1724462608613,8.58641531,2754.0,2753.5,3.63163]
[1724462609113,8.58641531,2754.0,2753.6,3.6316]
[1724462610503,1.13641531,2753.9,2753.6,3.6316]
[1724462610908,8.58641531,2754.0,2753.6,3.6316]
[1724462611272,1.13641531,2753.9,2753.6,3.6316]
[1724462611472,7.45,2754.0,2753.6,3.6316]
[1724462611473,8.58641531,2754.0,2753.6,3.6316]
[1724462611879,1.13641531,2753.9,2753.5,7.26328]
[1724462612082,1.13641531,2753.9,2753.4,6.03706]
[1724462612298,1.13641531,2753.8,2753.4,2.4052]
[1724462612498,1.13641531,2753.7,2753.0,3.0]
[1724462612679,2.4339,2753.8,2752.6,1.27905077]
[1724462612680,3.63241,2753.0,2752.6,2.65415486]
[1724462612874,3.63266,2752.9,2752.2,5.52745239]
[1724462613136,3.63266,2752.9,2752.2,3.63333]
[1724462613137,3.63269,2752.8,2752.2,3.63333]
[1724462613427,4.76910531,2752.8,2752.2,3.63333]
[1724462613725,3.63266,2752.9,2752.1,0.726726]
[1724462613726,3.63282,2752.7,2752.1,0.726726]
[1724462615018,3.63282,2752.7,2752.0,6.03882]
[1724462615223,1.13641531,2752.8,2752.2,3.63344]
[1724462615423,1.13641531,2752.8,2752.3,3.6332]
[1724462615628,1.13641531,2752.9,2752.4,3.63318]
[1724462615794,1.13641531,2752.9,2752.6,3.6329]
[1724462616133,2.14565493,2752.9,2752.4,3.63309]
[1724462618600,2.14565493,2752.9,2752.4,7.26619]
[1724462618785,1.13641531,2752.9,2752.4,7.26619]
[1724462618985,1.13641531,2752.9,2752.4,7.26618]
[1724462619181,1.13641531,2752.9,2752.6,3.63288]
[1724462619430,1.13641531,2752.9,2752.4,3.63309]
[1724462619431,1.13641531,2752.9,2752.5,3.63303]
[1724462620725,3.63228,2753.1,2752.5,3.63303]
[1724462620925,0.47686953,2753.0,2752.5,3.63303]
[1724462622009,0.47686953,2753.0,2752.4,3.63309]
[1724462622207,4.10929953,2753.0,2752.4,3.63309]
[1724462622737,3.63274,2752.8,2752.0,3.63363]
[1724462622939,3.63244,2753.0,2751.9,7.44]
[1724462623160,3.63244,2753.0,2752.5,3.63302]
[1724462623446,3.63244,2753.0,2752.4,3.63311]
[1724462623748,3.63235,2753.1,2752.5,3.63296]
[1724462623945,5.00480462,2753.1,2752.5,3.63296]
[1724462624807,3.63242,2753.0,2752.3,3.63321]
[1724462625341,3.63242,2753.0,2752.4,3.63316]
[1724462625552,4.60976399,2753.0,2752.4,3.63316]
[1724462627052,4.60976399,2753.0,2752.5,3.63302]
[1724462628559,4.60976399,2753.0,2752.3,3.63321]
[1724462628767,4.60976399,2753.0,2752.4,3.63317]
[1724462632761,0.97734399,2753.0,2752.5,3.63296]
[1724462633343,3.63218,2753.2,2752.6,3.63282]
[1724462633543,3.63218,2753.2,2752.5,3.63296]
[1724462634150,7.45,2753.3,2752.8,3.63263]
[1724462634594,7.45,2753.3,2752.8,3.63259]
[1724462634801,7.45,2753.3,2752.9,3.63251]
[1724462635689,1.13641531,2753.6,2753.0,3.63236]
[1724462635949,1.13641531,2753.9,2753.0,3.63232]
[1724462636178,3.63144,2753.8,2753.2,3.63206]
[1724462636391,1.56355244,2754.1,2753.6,3.6316]
[1724462636392,1.19398687,2754.1,2753.6,3.6316]
[1724462636573,0.76570324,2754.1,2753.6,3.6316]
[1724462636756,0.04727484,2754.0,2753.4,3.63175]
[1724462637993,0.04727484,2754.0,2753.4,7.26352]
[1724462638369,0.04727484,2754.0,2753.5,3.63172]
[1724462638789,0.04727484,2754.0,2753.4,3.63175]
[1724462639094,0.04727484,2754.0,2753.5,3.63173]
[1724462639277,0.49166765,2754.0,2753.4,7.26353]
[1724462640095,0.49166765,2754.0,2753.4,3.63175]
[1724462640795,0.49166765,2754.0,2753.4,3.63174]
[1724462640964,4.12275765,2754.0,2753.4,3.63183]
[1724462641354,3.63131,2753.9,2753.2,3.63208]
[1724462641556,4.48328109,2753.9,2753.3,3.0]
[1724462641754,0.04738387,2753.8,2753.3,3.0]
[1724462641997,0.04738387,2753.8,2753.3,6.63199]
[1724462643293,0.04738387,2753.8,2753.3,10.2639]
[1724462643478,0.04738387,2753.8,2753.4,3.63186]
[1724462643870,0.44439281,2754.0,2753.4,3.63186]
[1724462644064,0.04733898,2753.7,2753.4,3.63186]
[1724462644397,0.41329544,2753.9,2753.4,3.63186]
[1724462644903,0.04737924,2753.8,2753.4,3.63186]
[1724462645383,0.04737924,2753.8,2753.5,3.63172]
[1724462646270,0.44439281,2754.0,2753.6,3.6315]
[1724462646506,0.04741949,2753.9,2753.6,3.6315]
[1724462648307,0.04741949,2753.9,2753.2,3.63203]
[1724462648308,0.46545388,2753.9,2753.2,3.63203]
[1724462648477,3.67871949,2753.9,2753.4,3.63186]
[1724462648817,3.67871949,2753.9,2753.3,3.63199]
[1724462649513,3.67871949,2753.9,2753.2,3.63203]
[1724462649723,3.63155,2753.7,2753.0,3.6323]
[1724462650018,0.04723218,2753.6,2753.1,3.63226]
[1724462650215,0.4151104,2753.6,2753.1,3.63226]
[1724462650887,0.4151104,2753.6,2752.8,3.0]
[1724462650888,0.4151104,2753.6,2752.8,6.63256]
[1724462651084,0.4151104,2753.6,2752.8,3.0]
[1724462651085,3.63209,2753.3,2752.8,3.0]